[Event "Titled Tuesday Blitz April 18 Early 2023"]
[White "Mahdavi, Reza"]
[Black "Rottenwohrer Suarez, Juan"]
[WhiteFideId "12595926"]
[BlackFideId "32068182"]
[WhiteElo "2357"]
[BlackElo "2174"]
[Result "1-0"]
[Round "01"]
[TimeControl "180+2"]
[Date "2023.04.18"]
[WhiteClock "0:00:24"]
[BlackClock "0:00:03"]

1. Nf3 {[%clk 0:03:00]}  Nf6 {[%clk 0:02:57]} 2. g3 {[%clk 0:03:00]}  b5 {[%clk 0:02:55]} 3. Bg2 {[%clk 0:03:00]}  Bb7 {[%clk 0:02:56]} 4. Na3 {[%clk 0:02:53]}  b4 {[%clk 0:02:50]} 5. Nc4 {[%clk 0:02:51]}  c5 {[%clk 0:02:48]} 6. O-O {[%clk 0:02:47]}  g6 {[%clk 0:02:45]} 7. a3 {[%clk 0:02:40]}  a5 {[%clk 0:02:33]} 8. axb4 {[%clk 0:02:40]}  axb4 {[%clk 0:02:33]} 9. Rxa8 {[%clk 0:02:41]}  Bxa8 {[%clk 0:02:33]} 10. b3 {[%clk 0:02:42]}  Bg7 {[%clk 0:02:30]} 11. Bb2 {[%clk 0:02:43]}  O-O {[%clk 0:02:30]} 12. Qa1 {[%clk 0:02:43]}  Nc6 {[%clk 0:02:25]} 13. Nfe5 {[%clk 0:02:36]}  Nxe5 {[%clk 0:02:22]} 14. Bxe5 {[%clk 0:02:37]}  Bxg2 {[%clk 0:02:21]} 15. Kxg2 {[%clk 0:02:38]}  d6 {[%clk 0:02:20]} 16. Bb2 {[%clk 0:02:37]}  Qc7 {[%clk 0:02:07]} 17. Qa6 {[%clk 0:02:20]}  h5 {[%clk 0:01:45]} 18. Ra1 {[%clk 0:02:09]}  h4 {[%clk 0:01:43]} 19. f3 {[%clk 0:02:05]}  Qd7 {[%clk 0:01:38]} 20. Qa7 {[%clk 0:01:56]}  Qe6 {[%clk 0:01:37]} 21. e3 {[%clk 0:01:47]}  h3+ {[%clk 0:01:33]} 22. Kf2 {[%clk 0:01:47]}  d5 {[%clk 0:01:26]} 23. Nb6 {[%clk 0:01:37]}  Ng4+ {[%clk 0:01:14]} 24. fxg4 {[%clk 0:01:36]}  Bxb2 {[%clk 0:01:15]} 25. Rf1 {[%clk 0:01:31]}  Qxg4 {[%clk 0:01:02]} 26. Qd7 {[%clk 0:01:22]}  Qxd7 {[%clk 0:01:00]} 27. Nxd7 {[%clk 0:01:23]}  Rc8 {[%clk 0:00:59]} 28. Nb6 {[%clk 0:01:22]}  Rd8 {[%clk 0:00:58]} 29. Na4 {[%clk 0:01:21]}  Bg7 {[%clk 0:00:52]} 30. Nxc5 {[%clk 0:01:22]}  Rc8 {[%clk 0:00:53]} 31. d4 {[%clk 0:01:22]}  e5 {[%clk 0:00:53]} 32. Rd1 {[%clk 0:00:59]}  exd4 {[%clk 0:00:52]} 33. exd4 {[%clk 0:01:00]}  Bxd4+ {[%clk 0:00:52]} 34. Rxd4 {[%clk 0:01:00]}  Rxc5 {[%clk 0:00:52]} 35. Rd2 {[%clk 0:01:01]}  f5 {[%clk 0:00:45]} 36. Ke3 {[%clk 0:01:02]}  Kf7 {[%clk 0:00:35]} 37. Kd4 {[%clk 0:01:02]}  Rc3 {[%clk 0:00:34]} 38. Kxd5 {[%clk 0:01:01]}  Kf6 {[%clk 0:00:34]} 39. Kd4 {[%clk 0:01:01]}  g5 {[%clk 0:00:32]} 40. Rf2 {[%clk 0:01:01]}  f4 {[%clk 0:00:14]} 41. Ke4 {[%clk 0:00:58]}  Re3+ {[%clk 0:00:11]} 42. Kd4 {[%clk 0:00:58]}  Kf5 {[%clk 0:00:08]} 43. gxf4 {[%clk 0:00:57]}  g4 {[%clk 0:00:08]} 44. Kc4 {[%clk 0:00:57]}  Rf3 {[%clk 0:00:07]} 45. Rd2 {[%clk 0:00:48]}  Rxf4+ {[%clk 0:00:07]} 46. Kb5 {[%clk 0:00:46]}  Re4 {[%clk 0:00:07]} 47. Rf2+ {[%clk 0:00:45]}  Ke5 {[%clk 0:00:07]} 48. Rf8 {[%clk 0:00:45]}  Kd4 {[%clk 0:00:06]} 49. Kxb4 {[%clk 0:00:42]}  Ke3+ {[%clk 0:00:07]} 50. c4 {[%clk 0:00:42]}  Rf4 {[%clk 0:00:04]} 51. Rxf4 {[%clk 0:00:30]}  Kxf4 {[%clk 0:00:05]} 52. c5 {[%clk 0:00:31]}  g3 {[%clk 0:00:03]} 53. hxg3+ {[%clk 0:00:32]}  Kxg3 {[%clk 0:00:04]} 54. c6 {[%clk 0:00:33]}  h2 {[%clk 0:00:05]} 55. c7 {[%clk 0:00:33]}  h1=Q {[%clk 0:00:05]} 56. c8=Q {[%clk 0:00:34]}  Qe4+ {[%clk 0:00:02]} 57. Qc4 {[%clk 0:00:32]}  Qb7+ {[%clk 0:00:02]} 58. Qb5 {[%clk 0:00:29]}  Qe7+ {[%clk 0:00:02]} 59. Qc5 {[%clk 0:00:27]}  Qb7+ {[%clk 0:00:02]} 60. Ka4 {[%clk 0:00:27]}  Qa6+ {[%clk 0:00:02]} 61. Qa5 {[%clk 0:00:27]}  Qc6+ {[%clk 0:00:03]} 62. Qb5 {[%clk 0:00:24]}  Qa8+ {[%clk 0:00:03]} 63. Kb4 {[%clk 0:00:25]}  Qf8+ {[%clk 0:00:04]} 64. Kc3 {[%clk 0:00:26]}  Qc8+ {[%clk 0:00:04]} 65. Kb2 {[%clk 0:00:25]}  Qh8+ {[%clk 0:00:04]} 66. Ka2 {[%clk 0:00:22]}  Qa8+ {[%clk 0:00:04]} 67. Qa4 {[%clk 0:00:23]}  Qc8 {[%clk 0:00:04]} 68. Qc4 {[%clk 0:00:22]}  Qa8+ {[%clk 0:00:03]} 69. Kb2 {[%clk 0:00:22]}  Qh8+ {[%clk 0:00:04]} 70. Qc3+ {[%clk 0:00:22]}  Qxc3+ {[%clk 0:00:02]} 71. Kxc3 {[%clk 0:00:23]}  Kf4 {[%clk 0:00:03]} 72. Kd4 {[%clk 0:00:24]} 1-0


[Site "https://www.chess.com"]

[Event "Titled Tuesday Blitz April 18 Early 2023"]
[White "Liu, Casper"]
[Black "chessfatbear"]
[WhiteFideId "1454153"]
[WhiteElo "2221"]
[BlackElo "2780"]
[Result "0-1"]
[Round "01"]
[TimeControl "180+2"]
[Date "2023.04.18"]
[WhiteClock "0:00:01"]
[BlackClock "0:01:23"]

1. e4 {[%clk 0:02:54]}  c5 {[%clk 0:02:55]} 2. Nc3 {[%clk 0:02:52]}  Nc6 {[%clk 0:02:55]} 3. Nf3 {[%clk 0:02:52]}  g6 {[%clk 0:02:55]} 4. g3 {[%clk 0:02:51]}  Bg7 {[%clk 0:02:54]} 5. Bg2 {[%clk 0:02:52]}  e6 {[%clk 0:02:55]} 6. O-O {[%clk 0:02:52]}  Nge7 {[%clk 0:02:55]} 7. d3 {[%clk 0:02:53]}  O-O {[%clk 0:02:55]} 8. h4 {[%clk 0:02:53]}  d6 {[%clk 0:02:47]} 9. h5 {[%clk 0:02:53]}  Rb8 {[%clk 0:02:47]} 10. h6 {[%clk 0:02:54]}  Bh8 {[%clk 0:02:47]} 11. a4 {[%clk 0:02:54]}  a6 {[%clk 0:02:47]} 12. Be3 {[%clk 0:02:47]}  Nd4 {[%clk 0:02:46]} 13. Ra2 {[%clk 0:02:29]}  e5 {[%clk 0:02:45]} 14. Nb1 {[%clk 0:02:19]}  f5 {[%clk 0:02:40]} 15. c3 {[%clk 0:02:18]}  Nxf3+ {[%clk 0:02:38]} 16. Bxf3 {[%clk 0:02:17]}  Be6 {[%clk 0:02:34]} 17. c4 {[%clk 0:02:13]}  f4 {[%clk 0:02:31]} 18. Bd2 {[%clk 0:02:01]}  Nc6 {[%clk 0:02:30]} 19. Bg4 {[%clk 0:01:24]}  Qd7 {[%clk 0:02:21]} 20. Bxe6+ {[%clk 0:00:53]}  Qxe6 {[%clk 0:02:22]} 21. Kh2 {[%clk 0:00:53]}  Nd4 {[%clk 0:02:10]} 22. gxf4 {[%clk 0:00:35]}  exf4 {[%clk 0:02:08]} 23. f3 {[%clk 0:00:36]}  g5 {[%clk 0:02:00]} 24. Nc3 {[%clk 0:00:15]}  Be5 {[%clk 0:01:55]} 25. Nd5 {[%clk 0:00:14]}  Kh8 {[%clk 0:01:47]} 26. Kg2 {[%clk 0:00:11]}  g4 {[%clk 0:01:46]} 27. fxg4 {[%clk 0:00:09]}  f3+ {[%clk 0:01:44]} 28. Kf2 {[%clk 0:00:10]}  Qxg4 {[%clk 0:01:41]} 29. Rg1 {[%clk 0:00:09]}  Qh4+ {[%clk 0:01:40]} 30. Kf1 {[%clk 0:00:10]}  Qh3+ {[%clk 0:01:30]} 31. Kf2 {[%clk 0:00:10]}  Qh2+ {[%clk 0:01:27]} 32. Kf1 {[%clk 0:00:10]}  f2 {[%clk 0:01:26]} 33. Rg7 {[%clk 0:00:01]}  Qh1+ {[%clk 0:01:23]} 0-1


[Site "https://www.chess.com"]

[Event "Titled Tuesday Blitz April 18 Early 2023"]
[White "Mazurkiewicz, Michal"]
[Black "Csonka, Balazs"]
[WhiteFideId "1124943"]
[BlackFideId "742910"]
[WhiteElo "2054"]
[BlackElo "2404"]
[Result "0-1"]
[Round "01"]
[TimeControl "180+2"]
[Date "2023.04.18"]
[WhiteClock "0:00:01"]
[BlackClock "0:00:08"]

1. e4 {[%clk 0:02:59]}  e6 {[%clk 0:02:59]} 2. d3 {[%clk 0:02:59]}  d5 {[%clk 0:02:56]} 3. Nd2 {[%clk 0:03:00]}  Nc6 {[%clk 0:02:54]} 4. Ngf3 {[%clk 0:02:59]}  Nf6 {[%clk 0:02:54]} 5. c3 {[%clk 0:03:00]}  a5 {[%clk 0:02:49]} 6. e5 {[%clk 0:03:00]}  Nd7 {[%clk 0:02:49]} 7. d4 {[%clk 0:03:01]}  f6 {[%clk 0:02:23]} 8. Bb5 {[%clk 0:03:01]}  Na7 {[%clk 0:02:23]} 9. Bd3 {[%clk 0:02:56]}  Nc6 {[%clk 0:02:17]} 10. Nh4 {[%clk 0:02:36]}  g6 {[%clk 0:01:31]} 11. Nxg6 {[%clk 0:01:59]}  hxg6 {[%clk 0:01:27]} 12. Bxg6+ {[%clk 0:02:00]}  Ke7 {[%clk 0:01:27]} 13. b3 {[%clk 0:01:59]}  fxe5 {[%clk 0:01:05]} 14. Nf3 {[%clk 0:01:35]}  Bh6 {[%clk 0:00:35]} 15. Ng5 {[%clk 0:01:35]}  Qg8 {[%clk 0:00:28]} 16. Bf7 {[%clk 0:00:38]}  Qg7 {[%clk 0:00:18]} 17. Ba3+ {[%clk 0:00:36]}  Nb4 {[%clk 0:00:14]} 18. Nxe6 {[%clk 0:00:01]}  Qxg2 {[%clk 0:00:13]} 19. Rf1 {[%clk 0:00:01]}  Kxf7 {[%clk 0:00:12]} 20. Nxc7 {[%clk 0:00:01]}  Qe4+ {[%clk 0:00:08]} 0-1


[Site "https://www.chess.com"]

[Event "Titled Tuesday Blitz April 18 Early 2023"]
[White "Cherniaiev, Tykhon"]
[Black "Begunov, Konstantin"]
[WhiteFideId "14182360"]
[BlackFideId "4118510"]
[WhiteElo "2450"]
[BlackElo "2087"]
[Result "1/2-1/2"]
[Round "01"]
[TimeControl "180+2"]
[Date "2023.04.18"]
[WhiteClock "0:00:10"]
[BlackClock "0:00:19"]

1. Nf3 {[%clk 0:03:00]}  d5 {[%clk 0:02:56]} 2. d4 {[%clk 0:02:58]}  c6 {[%clk 0:02:57]} 3. c4 {[%clk 0:02:58]}  Nf6 {[%clk 0:02:56]} 4. e3 {[%clk 0:02:58]}  a6 {[%clk 0:02:56]} 5. Nbd2 {[%clk 0:02:58]}  Bf5 {[%clk 0:02:55]} 6. b3 {[%clk 0:02:56]}  e6 {[%clk 0:02:55]} 7. Bb2 {[%clk 0:02:57]}  Bd6 {[%clk 0:02:55]} 8. h3 {[%clk 0:02:52]}  h6 {[%clk 0:02:54]} 9. Be2 {[%clk 0:02:52]}  Nbd7 {[%clk 0:02:54]} 10. O-O {[%clk 0:02:53]}  Qe7 {[%clk 0:02:54]} 11. Re1 {[%clk 0:02:49]}  Ne4 {[%clk 0:02:53]} 12. Nxe4 {[%clk 0:02:48]}  Bxe4 {[%clk 0:02:53]} 13. Nd2 {[%clk 0:02:47]}  Bh7 {[%clk 0:02:52]} 14. Bf3 {[%clk 0:02:46]}  Nf6 {[%clk 0:02:34]} 15. e4 {[%clk 0:02:39]}  dxe4 {[%clk 0:02:32]} 16. Nxe4 {[%clk 0:02:40]}  Nxe4 {[%clk 0:02:32]} 17. Bxe4 {[%clk 0:02:41]}  Bxe4 {[%clk 0:02:32]} 18. Rxe4 {[%clk 0:02:42]}  Ba3 {[%clk 0:02:13]} 19. Bxa3 {[%clk 0:02:19]}  Qxa3 {[%clk 0:02:14]} 20. d5 {[%clk 0:02:20]}  cxd5 {[%clk 0:02:14]} 21. cxd5 {[%clk 0:02:19]}  Rd8 {[%clk 0:02:11]} 22. Qg4 {[%clk 0:01:49]}  Qb2 {[%clk 0:01:53]} 23. Rae1 {[%clk 0:01:33]}  O-O {[%clk 0:01:42]} 24. dxe6 {[%clk 0:01:31]}  f5 {[%clk 0:01:39]} 25. Qe2 {[%clk 0:01:28]}  Qxe2 {[%clk 0:01:23]} 26. R4xe2 {[%clk 0:01:27]}  Rfe8 {[%clk 0:01:22]} 27. Rc1 {[%clk 0:01:06]}  Re7 {[%clk 0:01:17]} 28. Rc5 {[%clk 0:00:51]}  g6 {[%clk 0:01:16]} 29. g4 {[%clk 0:00:27]}  fxg4 {[%clk 0:00:54]} 30. hxg4 {[%clk 0:00:28]}  Rd6 {[%clk 0:00:54]} 31. Rc8+ {[%clk 0:00:24]}  Kg7 {[%clk 0:00:54]} 32. Kg2 {[%clk 0:00:23]}  Kf6 {[%clk 0:00:44]} 33. Rf8+ {[%clk 0:00:19]}  Kg7 {[%clk 0:00:44]} 34. Rb8 {[%clk 0:00:19]}  Kf6 {[%clk 0:00:43]} 35. Re3 {[%clk 0:00:18]}  Rdxe6 {[%clk 0:00:27]} 36. Rxe6+ {[%clk 0:00:18]}  Kxe6 {[%clk 0:00:26]} 37. Rh8 {[%clk 0:00:18]}  Kf6 {[%clk 0:00:21]} 38. Rxh6 {[%clk 0:00:19]}  Kg5 {[%clk 0:00:21]} 39. Rh3 {[%clk 0:00:19]}  Kxg4 {[%clk 0:00:20]} 40. Rg3+ {[%clk 0:00:20]}  Kf5 {[%clk 0:00:21]} 41. Rf3+ {[%clk 0:00:21]}  Kg5 {[%clk 0:00:21]} 42. Rc3 {[%clk 0:00:20]}  Kf6 {[%clk 0:00:21]} 43. Kf3 {[%clk 0:00:20]}  Rd7 {[%clk 0:00:20]} 44. Re3 {[%clk 0:00:18]}  Rd6 {[%clk 0:00:20]} 45. Rc3 {[%clk 0:00:17]}  a5 {[%clk 0:00:20]} 46. Rc5 {[%clk 0:00:16]}  b6 {[%clk 0:00:19]} 47. Rb5 {[%clk 0:00:15]}  Ke6 {[%clk 0:00:19]} 48. Kg2 {[%clk 0:00:15]}  Kf6 {[%clk 0:00:18]} 49. a4 {[%clk 0:00:13]}  Ke6 {[%clk 0:00:19]} 50. b4 {[%clk 0:00:13]}  axb4 {[%clk 0:00:18]} 51. Rxb4 {[%clk 0:00:14]}  Kf6 {[%clk 0:00:18]} 52. Rb5 {[%clk 0:00:14]}  Ke6 {[%clk 0:00:19]} 53. Kg3 {[%clk 0:00:14]}  Kf6 {[%clk 0:00:19]} 54. f4 {[%clk 0:00:13]}  Ke6 {[%clk 0:00:19]} 55. Kg4 {[%clk 0:00:14]}  Kf6 {[%clk 0:00:20]} 56. Rb4 {[%clk 0:00:14]}  Rc6 {[%clk 0:00:20]} 57. Rb5 {[%clk 0:00:14]}  Rd6 {[%clk 0:00:20]} 58. a5 {[%clk 0:00:14]}  bxa5 {[%clk 0:00:20]} 59. Rxa5 {[%clk 0:00:15]}  Re6 {[%clk 0:00:20]} 60. Ra8 {[%clk 0:00:14]}  Rd6 {[%clk 0:00:21]} 61. Rf8+ {[%clk 0:00:15]}  Kg7 {[%clk 0:00:21]} 62. Re8 {[%clk 0:00:15]}  Kf7 {[%clk 0:00:21]} 63. Re5 {[%clk 0:00:15]}  Kf6 {[%clk 0:00:21]} 64. Ra5 {[%clk 0:00:15]}  Rc6 {[%clk 0:00:22]} 65. Ra8 {[%clk 0:00:14]}  Rd6 {[%clk 0:00:22]} 66. Rf8+ {[%clk 0:00:14]}  Kg7 {[%clk 0:00:22]} 67. Re8 {[%clk 0:00:15]}  Kf7 {[%clk 0:00:22]} 68. Re1 {[%clk 0:00:12]}  Kf6 {[%clk 0:00:23]} 69. Rc1 {[%clk 0:00:13]}  Rb6 {[%clk 0:00:23]} 70. Rh1 {[%clk 0:00:11]}  Rc6 {[%clk 0:00:23]} 71. Rh6 {[%clk 0:00:12]}  Rc4 {[%clk 0:00:22]} 72. Rh8 {[%clk 0:00:08]}  Rc6 {[%clk 0:00:21]} 73. Rf8+ {[%clk 0:00:08]}  Kg7 {[%clk 0:00:22]} 74. Rd8 {[%clk 0:00:08]}  Kf6 {[%clk 0:00:21]} 75. Rd4 {[%clk 0:00:08]}  Re6 {[%clk 0:00:19]} 76. Rd5 {[%clk 0:00:08]}  Rc6 {[%clk 0:00:19]} 77. Kg3 {[%clk 0:00:08]}  Rc3+ {[%clk 0:00:19]} 78. Kg4 {[%clk 0:00:09]}  Rc6 {[%clk 0:00:19]} 79. Re5 {[%clk 0:00:09]}  Re6 {[%clk 0:00:18]} 80. Rxe6+ {[%clk 0:00:08]}  Kxe6 {[%clk 0:00:19]} 81. Kg5 {[%clk 0:00:09]}  Kf7 {[%clk 0:00:19]} 82. f5 {[%clk 0:00:09]}  gxf5 {[%clk 0:00:19]} 83. Kxf5 {[%clk 0:00:10]} 1/2-1/2


[Site "https://www.chess.com"]

[Event "Titled Tuesday Blitz April 18 Early 2023"]
[White "Petrova, Irina"]
[Black "Atakishiyev, Elmar"]
[WhiteFideId "14124122"]
[BlackFideId "13410547"]
[WhiteElo "2084"]
[BlackElo "2239"]
[Result "0-1"]
[Round "01"]
[TimeControl "180+2"]
[Date "2023.04.18"]
[WhiteClock "0:00:15"]
[BlackClock "0:01:27"]

1. e4 {[%clk 0:03:00]}  Nf6 {[%clk 0:02:59]} 2. e5 {[%clk 0:02:58]}  Nd5 {[%clk 0:02:54]} 3. d4 {[%clk 0:02:58]}  d6 {[%clk 0:02:54]} 4. c4 {[%clk 0:02:57]}  Nb6 {[%clk 0:02:55]} 5. exd6 {[%clk 0:02:58]}  cxd6 {[%clk 0:02:55]} 6. Nc3 {[%clk 0:02:58]}  g6 {[%clk 0:02:56]} 7. Be3 {[%clk 0:02:58]}  Bg7 {[%clk 0:02:56]} 8. Rc1 {[%clk 0:02:58]}  O-O {[%clk 0:02:56]} 9. b3 {[%clk 0:02:58]}  Bf5 {[%clk 0:02:55]} 10. Nf3 {[%clk 0:02:58]}  d5 {[%clk 0:02:55]} 11. c5 {[%clk 0:02:55]}  Nc8 {[%clk 0:02:56]} 12. Be2 {[%clk 0:02:50]}  Nc6 {[%clk 0:02:56]} 13. O-O {[%clk 0:02:48]}  e6 {[%clk 0:02:56]} 14. a3 {[%clk 0:02:47]}  N8e7 {[%clk 0:02:56]} 15. b4 {[%clk 0:02:45]}  a6 {[%clk 0:02:56]} 16. Na4 {[%clk 0:02:39]}  Bg4 {[%clk 0:02:51]} 17. Nb6 {[%clk 0:02:37]}  Ra7 {[%clk 0:02:48]} 18. Qd2 {[%clk 0:02:23]}  Nf5 {[%clk 0:02:42]} 19. Bg5 {[%clk 0:01:21]}  Qe8 {[%clk 0:02:08]} 20. Ne5 {[%clk 0:01:06]}  Bxe2 {[%clk 0:02:02]} 21. Nxc6 {[%clk 0:01:06]}  bxc6 {[%clk 0:01:49]} 22. Qxe2 {[%clk 0:01:04]}  Nxd4 {[%clk 0:01:50]} 23. Qd3 {[%clk 0:00:59]}  e5 {[%clk 0:01:50]} 24. Rfe1 {[%clk 0:00:35]}  e4 {[%clk 0:01:50]} 25. Qh3 {[%clk 0:00:34]}  f5 {[%clk 0:01:49]} 26. Bf4 {[%clk 0:00:32]}  Ne6 {[%clk 0:01:38]} 27. Bh6 {[%clk 0:00:26]}  f4 {[%clk 0:01:34]} 28. Bxg7 {[%clk 0:00:26]}  Rxg7 {[%clk 0:01:35]} 29. f3 {[%clk 0:00:24]}  e3 {[%clk 0:01:29]} 30. Rcd1 {[%clk 0:00:20]}  h5 {[%clk 0:01:29]} 31. Qh4 {[%clk 0:00:19]}  g5 {[%clk 0:01:29]} 32. Qh3 {[%clk 0:00:18]}  g4 {[%clk 0:01:30]} 33. fxg4 {[%clk 0:00:18]}  hxg4 {[%clk 0:01:30]} 34. Qh6 {[%clk 0:00:18]}  f3 {[%clk 0:01:27]} 35. Rf1 {[%clk 0:00:15]}  e2 {[%clk 0:01:27]} 0-1


[Site "https://www.chess.com"]

[Event "Titled Tuesday Blitz April 18 Early 2023"]
[White "Aradhya, Garg"]
[Black "Manon-og, Ramon Jr."]
[WhiteFideId "25006746"]
[BlackFideId "5200776"]
[WhiteElo "2263"]
[BlackElo "2389"]
[Result "1-0"]
[Round "01"]
[TimeControl "180+2"]
[Date "2023.04.18"]
[WhiteClock "0:00:02"]
[BlackClock "0:00:04"]

1. d4 {[%clk 0:03:00]}  Nf6 {[%clk 0:02:59]} 2. c4 {[%clk 0:03:01]}  g6 {[%clk 0:02:59]} 3. g3 {[%clk 0:03:00]}  d5 {[%clk 0:03:00]} 4. cxd5 {[%clk 0:02:58]}  Nxd5 {[%clk 0:03:01]} 5. Bg2 {[%clk 0:02:57]}  Bg7 {[%clk 0:03:01]} 6. Nf3 {[%clk 0:02:56]}  O-O {[%clk 0:03:01]} 7. O-O {[%clk 0:02:57]}  c6 {[%clk 0:03:01]} 8. e4 {[%clk 0:02:55]}  Nb6 {[%clk 0:03:01]} 9. Nc3 {[%clk 0:02:54]}  Bg4 {[%clk 0:02:58]} 10. Be3 {[%clk 0:02:51]}  Nc4 {[%clk 0:02:58]} 11. Qb3 {[%clk 0:02:49]}  Nxe3 {[%clk 0:02:51]} 12. fxe3 {[%clk 0:02:49]}  Qb6 {[%clk 0:02:43]} 13. e5 {[%clk 0:02:41]}  Na6 {[%clk 0:02:31]} 14. Qc2 {[%clk 0:02:11]}  Nb4 {[%clk 0:02:30]} 15. Qe2 {[%clk 0:02:09]}  Rad8 {[%clk 0:02:22]} 16. h3 {[%clk 0:02:05]}  Bf5 {[%clk 0:02:17]} 17. e4 {[%clk 0:02:00]}  Be6 {[%clk 0:02:15]} 18. Kh2 {[%clk 0:02:00]}  Bh6 {[%clk 0:02:07]} 19. Na4 {[%clk 0:00:46]}  Qb5 {[%clk 0:01:42]} 20. Qxb5 {[%clk 0:00:45]}  cxb5 {[%clk 0:01:43]} 21. Nc3 {[%clk 0:00:39]}  Nc2 {[%clk 0:01:41]} 22. d5 {[%clk 0:00:37]}  Nxa1 {[%clk 0:01:31]} 23. Rxa1 {[%clk 0:00:36]}  Bd7 {[%clk 0:01:29]} 24. a3 {[%clk 0:00:36]}  Rc8 {[%clk 0:01:29]} 25. Bf1 {[%clk 0:00:36]}  a6 {[%clk 0:01:26]} 26. Rd1 {[%clk 0:00:35]}  Rfd8 {[%clk 0:01:16]} 27. Kg2 {[%clk 0:00:30]}  Be3 {[%clk 0:01:08]} 28. Nd4 {[%clk 0:00:23]}  Be8 {[%clk 0:00:53]} 29. Kf3 {[%clk 0:00:22]}  Bxd4 {[%clk 0:00:46]} 30. Rxd4 {[%clk 0:00:23]}  Rc5 {[%clk 0:00:43]} 31. h4 {[%clk 0:00:23]}  Rdc8 {[%clk 0:00:43]} 32. d6 {[%clk 0:00:17]}  exd6 {[%clk 0:00:43]} 33. exd6 {[%clk 0:00:17]}  Bd7 {[%clk 0:00:43]} 34. Nd5 {[%clk 0:00:17]}  Rd8 {[%clk 0:00:37]} 35. Nf6+ {[%clk 0:00:14]}  Kg7 {[%clk 0:00:37]} 36. Nxd7 {[%clk 0:00:15]}  Rxd7 {[%clk 0:00:38]} 37. Bh3 {[%clk 0:00:14]}  f5 {[%clk 0:00:38]} 38. Kf4 {[%clk 0:00:14]}  Kf6 {[%clk 0:00:37]} 39. g4 {[%clk 0:00:14]}  fxg4 {[%clk 0:00:30]} 40. Bxg4 {[%clk 0:00:13]}  Rd8 {[%clk 0:00:30]} 41. d7 {[%clk 0:00:14]}  h5 {[%clk 0:00:29]} 42. Bh3 {[%clk 0:00:12]}  Ke7 {[%clk 0:00:29]} 43. e5 {[%clk 0:00:11]}  Rc4 {[%clk 0:00:27]} 44. Rxc4 {[%clk 0:00:11]}  bxc4 {[%clk 0:00:28]} 45. e6 {[%clk 0:00:11]}  b5 {[%clk 0:00:25]} 46. Ke5 {[%clk 0:00:12]}  a5 {[%clk 0:00:25]} 47. Kd5 {[%clk 0:00:12]}  b4 {[%clk 0:00:19]} 48. axb4 {[%clk 0:00:12]}  axb4 {[%clk 0:00:20]} 49. Kxc4 {[%clk 0:00:12]}  Rb8 {[%clk 0:00:21]} 50. Kc5 {[%clk 0:00:12]}  b3 {[%clk 0:00:18]} 51. Kc6 {[%clk 0:00:12]}  Rb4 {[%clk 0:00:18]} 52. Bf1 {[%clk 0:00:06]}  Kd8 {[%clk 0:00:11]} 53. Bd3 {[%clk 0:00:05]}  Rd4 {[%clk 0:00:10]} 54. Bxg6 {[%clk 0:00:05]}  Rxh4 {[%clk 0:00:08]} 55. Kd6 {[%clk 0:00:05]}  Rd4+ {[%clk 0:00:08]} 56. Ke5 {[%clk 0:00:05]}  Rd2 {[%clk 0:00:07]} 57. Kf6 {[%clk 0:00:06]}  Rf2+ {[%clk 0:00:07]} 58. Bf5 {[%clk 0:00:06]}  Re2 {[%clk 0:00:07]} 59. Kf7 {[%clk 0:00:03]}  h4 {[%clk 0:00:07]} 60. Kf6 {[%clk 0:00:04]}  Re3 {[%clk 0:00:07]} 61. Kf7 {[%clk 0:00:04]}  Re2 {[%clk 0:00:05]} 62. Kf6 {[%clk 0:00:04]}  Re3 {[%clk 0:00:05]} 63. Kf7 {[%clk 0:00:04]}  Re5 {[%clk 0:00:05]} 64. Kf6 {[%clk 0:00:03]}  Re1 {[%clk 0:00:05]} 65. Kf7 {[%clk 0:00:04]}  h3 {[%clk 0:00:05]} 66. Bxh3 {[%clk 0:00:03]}  Rf1+ {[%clk 0:00:04]} 67. Bxf1 {[%clk 0:00:02]} 1-0


[Site "https://www.chess.com"]

[Event "Titled Tuesday Blitz April 18 Early 2023"]
[White "Srihari L R"]
[Black "Mika, Tomasz"]
[WhiteFideId "46617116"]
[BlackFideId "1132970"]
[WhiteElo "2334"]
[BlackElo "2179"]
[Result "1-0"]
[Round "01"]
[TimeControl "180+2"]
[Date "2023.04.18"]
[WhiteClock "0:01:18"]
[BlackClock "0:00:35"]

1. b3 {[%clk 0:02:42]}  d5 {[%clk 0:02:54]} 2. Bb2 {[%clk 0:02:42]}  Nc6 {[%clk 0:02:51]} 3. Nf3 {[%clk 0:02:30]}  Bg4 {[%clk 0:02:49]} 4. d4 {[%clk 0:02:28]}  Nf6 {[%clk 0:02:43]} 5. e3 {[%clk 0:02:25]}  e6 {[%clk 0:02:40]} 6. Nbd2 {[%clk 0:02:25]}  Be7 {[%clk 0:02:38]} 7. Be2 {[%clk 0:02:21]}  O-O {[%clk 0:02:37]} 8. O-O {[%clk 0:02:18]}  h6 {[%clk 0:02:36]} 9. h3 {[%clk 0:02:16]}  Bh5 {[%clk 0:02:35]} 10. c4 {[%clk 0:02:15]}  Ne4 {[%clk 0:02:23]} 11. Nxe4 {[%clk 0:02:14]}  dxe4 {[%clk 0:02:23]} 12. Ne5 {[%clk 0:02:08]}  Bxe2 {[%clk 0:02:15]} 13. Qxe2 {[%clk 0:02:08]}  Nxe5 {[%clk 0:02:14]} 14. dxe5 {[%clk 0:02:09]}  Qe8 {[%clk 0:02:13]} 15. Rfd1 {[%clk 0:02:05]}  Qc6 {[%clk 0:02:10]} 16. Qg4 {[%clk 0:02:03]}  Rad8 {[%clk 0:02:06]} 17. Rd4 {[%clk 0:02:02]}  Bc5 {[%clk 0:01:43]} 18. Rxe4 {[%clk 0:02:02]}  Rd2 {[%clk 0:01:43]} 19. Bd4 {[%clk 0:01:59]}  Rd8 {[%clk 0:01:27]} 20. Bc3 {[%clk 0:01:23]}  Rc2 {[%clk 0:01:16]} 21. Be1 {[%clk 0:01:23]}  Qd7 {[%clk 0:01:03]} 22. b4 {[%clk 0:01:18]}  Be7 {[%clk 0:00:42]} 23. Rd4 {[%clk 0:01:18]}  Qc6 {[%clk 0:00:36]} 24. Rxd8+ {[%clk 0:01:17]}  Bxd8 {[%clk 0:00:35]} 25. Qd1 {[%clk 0:01:18]} 1-0


[Site "https://www.chess.com"]